bitfinex/quotes_SOLUSD_20251007
["timestamp","ask_amount","ask_price","bid_price","bid_amount"]
[1759846765268,8.27753881,225.48,225.43,35.0]
[1759846765474,0.68,225.47,225.43,35.0]
[1759846765653,7.59753881,225.46,225.42,34.56]
[1759846765969,7.59753881,225.44,225.43,34.98]
[1759846766175,4.43575234,225.45,225.43,34.98]
[1759846766355,20.8,225.48,225.43,34.98]
[1759846766674,25.23506571,225.48,225.43,34.98]
[1759846766973,16.23252357,225.48,225.43,34.98]
[1759846767184,12.74260452,225.48,225.43,34.98]
[1759846767385,20.8,225.51,225.43,34.98]
[1759846767669,0.71,225.48,225.43,34.98]
[1759846767847,7.59753881,225.45,225.42,34.56]
[1759846768050,20.8,225.47,225.42,34.56]
[1759846768051,7.59753881,225.43,225.42,34.56]
[1759846768264,12.74350562,225.43,225.42,34.56]
[1759846768571,5.14596681,225.43,225.42,69.54]
[1759846768752,12.74350562,225.43,225.42,69.54]
[1759846770052,5.14596681,225.43,225.42,69.54]
[1759846770256,15.52463492,225.45,225.42,69.54]
[1759846770647,4.43557329,225.45,225.42,69.54]
[1759846771069,4.43498314,225.48,225.42,69.54]
[1759846771273,15.522441,225.48,225.42,69.54]
[1759846771447,23.11997981,225.48,225.42,69.54]
[1759846771647,23.11997981,225.48,225.43,34.96]
[1759846771855,0.71,225.47,225.42,34.56]
[1759846772058,8.30753881,225.46,225.43,34.96]
[1759846772375,5.14557329,225.45,225.43,34.96]
[1759846773261,12.7431121,225.45,225.43,34.96]
[1759846773873,12.0331121,225.45,225.43,34.96]
[1759846774055,4.43537363,225.47,225.43,34.96]
[1759846774251,11.08745786,225.48,225.43,34.96]
[1759846774472,15.522441,225.48,225.43,34.96]
[1759846774675,23.11997981,225.48,225.43,34.96]
[1759846775463,7.59753881,225.47,225.44,34.94]
[1759846775662,15.522441,225.48,225.44,34.94]
[1759846775978,4.43498314,225.48,225.45,0.66]
[1759846776290,4.43498314,225.48,225.44,34.94]
[1759846776483,4.43498314,225.48,225.44,35.6]
[1759846776657,4.43498314,225.48,225.45,0.66]
[1759846776852,4.43498314,225.48,225.46,0.66]
[1759846777054,20.8,225.51,225.47,0.66]
[1759846777375,0.71,225.5,225.48,34.94]
[1759846777551,0.71,225.49,225.42,34.56]
[1759846777751,7.59753881,225.46,225.43,34.92]
[1759846778060,20.8,225.5,225.43,34.92]
[1759846778271,7.59753881,225.48,225.43,34.92]
[1759846778589,4.43517984,225.47,225.43,35.58]
[1759846778792,4.43517984,225.47,225.43,34.92]
[1759846779093,4.43497346,225.49,225.43,34.92]
[1759846779295,4.43497346,225.49,225.44,0.66]
[1759846779456,7.59753881,225.52,225.45,0.66]
[1759846779800,23.11585041,225.54,225.45,0.66]
[1759846779969,7.59753881,225.52,225.45,0.66]
[1759846780166,7.59753881,225.48,225.42,34.56]
[1759846780573,4.43517984,225.47,225.42,34.56]
[1759846780781,4.43517984,225.47,225.42,35.22]
[1759846780981,4.43517984,225.47,225.43,34.92]
[1759846781274,4.43517984,225.47,225.43,35.58]
[1759846781693,4.43517984,225.47,225.43,34.92]
[1759846782583,4.43517984,225.47,225.43,35.58]
[1759846782895,15.52312945,225.47,225.43,34.92]
[1759846783275,16.19312945,225.47,225.44,34.9]
[1759846783473,15.52312945,225.47,225.44,34.9]
[1759846783893,15.52312945,225.47,225.42,34.56]
[1759846784077,15.52312945,225.47,225.43,34.9]
[1759846784281,8.26753881,225.46,225.42,34.56]
[1759846784483,8.26753881,225.46,225.43,34.88]
[1759846784484,4.43577004,225.44,225.43,34.88]
[1759846784877,12.03299871,225.46,225.43,34.88]
[1759846785074,23.12144011,225.46,225.43,34.88]
[1759846785378,4.4354599,225.46,225.43,34.88]
[1759846785576,4.4354599,225.46,225.44,0.66]
[1759846786178,4.4354599,225.46,225.43,34.88]
[1759846786477,15.52175262,225.49,225.44,0.66]
[1759846786892,15.52175262,225.49,225.43,34.88]
[1759846787101,15.52175262,225.49,225.44,0.66]
[1759846787289,4.43478646,225.49,225.45,0.66]
[1759846787470,4.43478646,225.49,225.46,34.88]
[1759846787675,15.52175262,225.49,225.46,34.88]
[1759846787982,15.52175262,225.49,225.42,35.22]
[1759846788376,15.52175262,225.49,225.43,34.86]
[1759846788683,15.52175262,225.49,225.44,34.86]
[1759846789302,15.52175262,225.49,225.45,0.66]
[1759846789604,15.52175262,225.49,225.44,34.86]
[1759846789780,15.52175262,225.49,225.44,35.52]
[1759846789976,0.67,225.48,225.44,34.86]
[1759846790181,15.52175262,225.49,225.44,35.52]
[1759846790384,15.52175262,225.49,225.44,34.86]
[1759846790694,15.52175262,225.49,225.44,35.52]
[1759846791199,15.52175262,225.49,225.44,34.86]
[1759846791576,5.80723393,225.48,225.42,34.56]
[1759846791781,5.13723393,225.46,225.43,34.84]
[1759846792183,5.13723393,225.46,225.42,34.56]
[1759846792184,5.13723393,225.47,225.44,34.84]
[1759846792397,0.67,225.46,225.44,34.84]
[1759846792602,4.43537656,225.46,225.44,34.84]
[1759846792903,4.43486107,225.49,225.44,34.84]
[1759846793082,5.13723393,225.48,225.44,34.84]
[1759846793478,5.80723393,225.48,225.44,34.84]
[1759846793798,5.13723393,225.48,225.44,34.84]
[1759846794004,4.43486107,225.49,225.45,0.66]
[1759846794302,11.08570129,225.52,225.46,0.66]
[1759846794498,11.08570129,225.52,225.47,34.82]
[1759846795002,5.13723393,225.54,225.48,0.66]
[1759846795003,4.43384819,225.54,225.48,0.66]
[1759846795202,15.51654521,225.57,225.48,0.66]
[1759846796679,11.08333158,225.57,225.48,0.66]
[1759846796881,5.13723393,225.55,225.49,34.82]
[1759846797113,4.4328206,225.59,225.42,38.99606328]
[1759846797114,21.49,225.54,225.42,34.56]
[1759846797315,5.13723393,225.5,225.43,35.45]
[1759846798609,5.82723393,225.51,225.43,35.45]
[1759846798787,4.4345898,225.5,225.44,0.65]
[1759846798985,5.13723393,225.55,225.44,0.65]
[1759846799512,4.43360673,225.55,225.44,0.65]
[1759846799695,4.43360673,225.55,225.44,11.52647521]
[1759846799894,4.43360673,225.55,225.45,0.65]
[1759846800413,15.51762357,225.55,225.46,4.43537656]
[1759846800598,15.51762357,225.55,225.47,35.45]
[1759846801124,0.69,225.61,225.47,34.8]
[1759846801291,10.25926867,225.63,225.48,11.52647521]
[1759846801486,21.33935553,225.63,225.5,10.87647521]
[1759846801690,21.33935553,225.63,225.51,35.43]
[1759846801901,5.13723393,225.59,225.52,34.78]
[1759846802119,0.69,225.58,225.53,34.78]
[1759846802299,0.69,225.57,225.48,0.65]
[1759846802626,4.43341017,225.56,225.41,16.58398963]
[1759846802794,5.82723393,225.55,225.46,20.8]
[1759846803006,5.82723393,225.55,225.37,22.18549028]
[1759846803007,5.13723393,225.53,225.47,34.76]
[1759846803206,5.13723393,225.49,225.48,34.76]
[1759846803407,5.82723393,225.49,225.48,34.76]
[1759846803915,5.13723393,225.49,225.48,34.76]
[1759846804113,5.82723393,225.49,225.48,34.76]
[1759846804530,10.26202039,225.49,225.48,34.76]
[1759846805317,21.34898655,225.49,225.48,34.76]
[1759846805516,21.34898655,225.49,225.42,34.56]
[1759846805826,5.13723393,225.47,225.43,34.76]
[1759846806738,4.43537656,225.46,225.43,34.76]
[1759846807430,15.52381796,225.46,225.43,34.76]
[1759846808135,5.82723393,225.45,225.29,0.65]
[1759846808316,5.13723393,225.39,225.3,55.86]
[1759846808629,15.52863924,225.39,225.31,0.65]
[1759846808809,0.69,225.47,225.32,10.87647521]
[1759846809009,0.69,225.47,225.34,10.87647521]
[1759846809224,5.82723393,225.47,225.35,34.74]
[1759846809420,5.82723393,225.47,225.36,0.65]
[1759846809625,0.69,225.47,225.36,0.65]
[1759846810215,20.8,225.47,225.36,0.65]
[1759846810626,4.43537656,225.46,225.37,4.4371478]
[1759846810934,4.43537656,225.46,225.38,35.37]
[1759846811139,4.43537656,225.46,225.39,0.65]
[1759846812137,16.22347694,225.51,225.39,0.65]
[1759846812336,4.4345898,225.5,225.4,34.72]
[1759846812552,11.08434434,225.55,225.41,11.52647521]
[1759846812724,0.69,225.55,225.43,10.87647521]
[1759846812914,4.43341017,225.56,225.46,20.8]
[1759846813225,4.43341017,225.56,225.47,35.37]
[1759846814038,15.51628876,225.57,225.47,35.37]
[1759846814556,20.65352269,225.57,225.47,0.65]
[1759846814717,5.13723393,225.55,225.44,0.65]
[1759846814916,5.82723393,225.55,225.45,55.5]
[1759846815332,5.82723393,225.55,225.46,0.65]
[1759846815719,4.43321363,225.57,225.46,0.65]
[1759846816037,4.43301711,225.58,225.48,10.87647521]
[1759846816242,4.43301711,225.58,225.49,0.65]
[1759846816544,22.85063371,225.63,225.49,0.65]
[1759846816545,4.43220954,225.63,225.51,10.87647521]
[1759846816846,4.4317742,225.65,225.54,20.8]
[1759846817042,11.76566897,225.72,225.56,10.87647521]
[1759846817215,5.12026758,225.72,225.6,10.87647521]
[1759846817415,5.13723393,225.71,225.61,35.33]
[1759846817626,0.69,225.7,225.61,35.33]
[1759846818039,5.13723393,225.72,225.61,35.33]
[1759846818214,5.12046386,225.71,225.61,35.33]
[1759846818412,16.19662353,225.71,225.61,21.45]
[1759846818637,16.19662353,225.71,225.62,34.68]
[1759846819152,21.33385746,225.71,225.62,34.68]
[1759846819343,16.19662353,225.71,225.63,0.65]
[1759846819524,5.12046386,225.71,225.63,0.65]
[1759846819721,4.43046386,225.71,225.64,34.68]
[1759846819919,0.79,225.73,225.64,34.68]
[1759846820128,4.5300979,225.73,225.65,5.08163533]
[1759846820345,4.5300979,225.73,225.65,0.65]
[1759846820547,15.60527621,225.73,225.65,0.65]
[1759846821251,0.1,225.73,225.65,0.65]
[1759846821436,0.1,225.73,225.65,5.08163696]
[1759846821754,0.1,225.73,225.66,11.52647521]
[1759846822239,4.53009744,225.73,225.66,0.65]
[1759846822551,0.1,225.73,225.67,34.64]
[1759846822856,0.1,225.73,225.68,0.65]
[1759846823046,0.1,225.73,225.69,0.65]
[1759846823351,4.53014642,225.73,225.7,0.65]
[1759846823735,0.1,225.73,225.67,34.64]
[1759846823930,0.1,225.73,225.71,0.65]
[1759846824131,0.1,225.73,225.72,0.65]
[1759846824767,0.1,225.73,225.72,11.52647521]
[1759846825245,0.1,225.73,225.72,32.32647521]
[1759846825619,0.1,225.73,225.72,66.94647521]
[1759846826854,0.1,225.73,225.72,46.14647521]
[1759846827344,0.1,225.73,225.72,46.12647521]
[1759846828220,0.1,225.74,225.73,15.30654653]
[1759846828549,0.1,225.74,225.73,16.00654653]
[1759846828754,0.1,225.74,225.73,50.58654653]
[1759846828930,1e-08,225.74,225.73,50.58654653]
[1759846829130,0.1,225.76,225.75,31.67647521]
[1759846829530,0.1,225.76,225.75,32.37647521]
[1759846830053,0.1,225.81,225.75,32.37647521]
[1759846830054,0.1,225.81,225.8,10.87647521]
[1759846830346,0.1,225.81,225.8,84.42517317]
[1759846830551,0.1,225.81,225.8,45.41647521]
[1759846830848,0.1,225.81,225.8,80.69647521]
[1759846832254,0.1,225.81,225.8,34.54]
[1759846832432,0.1,225.81,225.8,69.1]
[1759846833248,0.1,225.81,225.8,79.97647521]
[1759846833428,0.1,225.81,225.8,80.67647521]
[1759846835445,0.1,225.81,225.8,46.11647521]
[1759846835668,0.1,225.81,225.8,79.95647521]
[1759846835951,0.1,225.81,225.8,80.65647521]
[1759846836128,0.1,225.81,225.8,46.11647521]
[1759846836336,0.1,225.81,225.8,80.63647521]
[1759846836959,0.1,225.81,225.8,85.06517317]
[1759846838056,0.1,225.85,225.84,31.67647521]
[1759846838257,0.1,225.85,225.84,66.17647521]
[1759846838626,0.1,225.85,225.84,47.96701912]
[1759846838847,0.76,225.85,225.8,34.54]
[1759846839049,0.1,225.85,225.81,34.5]
[1759846839550,0.66,225.84,225.81,34.5]
[1759846839870,0.1,225.85,225.81,34.5]
[1759846840169,0.1,225.85,225.82,4.42830573]
[1759846840763,0.1,225.85,225.83,45.37647521]
[1759846841131,0.1,225.85,225.83,58.58509806]
[1759846841868,1e-08,225.87,225.86,31.67647521]
[1759846842165,1e-08,225.87,225.86,83.89399668]
[1759846842466,1e-08,225.87,225.86,84.58399668]
[1759846842836,0.2,225.88,225.87,24.18647521]
[1759846843035,0.66,225.96,225.87,24.18647521]
[1759846843036,0.66,225.96,225.9,20.8]
[1759846843250,0.66,225.96,225.9,55.26]
[1759846843532,0.66,225.96,225.9,31.67647521]
[1759846843745,0.66,225.96,225.9,66.13647521]
[1759846844143,0.66,225.96,225.9,70.5632127]
[1759846845463,0.66,225.96,225.9,66.13647521]
[1759846845833,0.66,225.96,225.9,70.5632127]
[1759846846063,0.66,225.98,225.9,71.2532127]
[1759846846551,4.42539935,225.97,225.9,66.13647521]
[1759846846751,0.66,225.96,225.9,31.67647521]
[1759846846953,0.66,225.96,225.9,36.7932127]
[1759846847157,0.66,225.96,225.9,71.2332127]
[1759846847334,0.66,225.96,225.9,70.5432127]
[1759846847657,0.1,225.99,225.85,10.87647521]
[1759846847658,0.76,225.91,225.85,10.87647521]
[1759846847834,5.1865813,225.91,225.86,34.44]
[1759846848042,0.66,225.9,225.86,34.44]
[1759846848240,0.66,225.89,225.86,34.44]
[1759846848450,0.66,225.88,225.87,34.44]
[1759846848654,0.1,225.91,225.85,15.30404068]
[1759846848861,0.1,225.91,225.87,10.87647521]
[1759846849046,0.1,225.91,225.88,34.42]
[1759846849248,0.66,225.9,225.84,10.87647521]
[1759846849557,0.66,225.89,225.84,31.67647521]
[1759846849737,0.66,225.88,225.85,34.42]
[1759846850433,0.66,225.87,225.85,34.42]
[1759846850656,0.66,225.86,225.85,34.42]
[1759846850833,0.76,225.91,225.86,4.42752147]
[1759846851052,0.76,225.91,225.88,10.87647521]
[1759846851233,0.76,225.91,225.89,34.42]
[1759846851751,0.1,225.91,225.89,34.42]
[1759846852340,0.1,225.91,225.9,11.56647521]
[1759846853047,0.1,225.91,225.9,10.87647521]
[1759846853842,0.76,225.91,225.9,34.4]
[1759846854848,5.18656195,225.91,225.87,20.8]
[1759846855066,0.66,225.9,225.88,45.27647521]
[1759846855370,0.1,225.91,225.89,34.38]
[1759846855569,0.1,225.91,225.88,10.87647521]
[1759846855770,0.1,225.91,225.9,34.38]
[1759846856839,11.16635385,225.91,225.87,20.8]
[1759846857041,11.16635385,225.91,225.8,34.54]
[1759846857042,7.56129534,225.88,225.8,34.54]
[1759846857276,7.56129534,225.84,225.81,34.38]
[1759846857568,0.7,225.83,225.81,34.38]
[1759846857774,15.59306075,225.91,225.81,34.38]
[1759846857957,0.7,225.9,225.81,34.38]
[1759846858268,4.42712944,225.88,225.81,34.38]
[1759846858472,0.7,225.87,225.81,34.38]
[1759846858848,8.26129534,225.87,225.81,34.38]
[1759846859145,8.26129534,225.86,225.81,34.38]
[1759846859370,0.7,225.85,225.81,34.38]
[1759846859752,4.42712944,225.88,225.81,34.38]
[1759846860081,7.56129534,225.86,225.81,34.38]
[1759846860371,4.42673749,225.9,225.82,11.55647521]
[1759846860549,0.1,225.91,225.84,10.87647521]
[1759846860753,4.52655618,225.91,225.84,10.87647521]
[1759846861259,0.1,225.91,225.86,10.87647521]
[1759846861569,0.1,225.91,225.87,35.04]
[1759846861745,0.1,225.91,225.88,34.36]
[1759846862571,0.1,225.91,225.89,0.68]
[1759846863369,0.1,225.91,225.9,34.5]
[1759846864849,0.1,225.91,225.9,68.84]
[1759846865059,5.22654154,225.91,225.9,34.5]
[1759846865274,5.22654154,225.91,225.9,68.84]
[1759846865577,0.1,225.91,225.9,68.84]
[1759846866347,0.1,225.91,225.9,84.8232127]
[1759846868384,1e-08,225.91,225.9,84.8232127]
[1759846868572,0.1,225.99,225.94,10.87647521]
[1759846868772,0.1,225.99,225.98,31.67647521]
[1759846868957,0.1,225.99,225.98,65.99647521]
[1759846869165,0.1,225.99,225.98,31.67647521]
[1759846869370,0.1,225.99,225.98,65.99647521]
[1759846869754,8.26129534,226.09,225.99,10.87647521]
[1759846869972,7.56129534,226.08,226.0,34.98]
[1759846870175,0.7,226.09,226.0,34.98]
[1759846870362,8.26129534,226.08,226.0,34.3]
[1759846870561,20.9,226.14,226.01,0.68]
[1759846870791,20.9,226.14,226.03,20.8]
[1759846870792,7.56129534,226.11,226.03,20.8]
[1759846870958,7.56129534,226.1,226.04,34.3]
[1759846871165,7.56129534,226.09,226.04,34.3]
[1759846871362,7.56129534,226.05,225.96,10.87647521]
[1759846871577,0.7,226.09,225.98,10.87647521]
[1759846871881,7.56129534,226.06,225.98,10.87647521]
[1759846872083,7.56129534,226.06,225.95,0.68]
[1759846872084,7.56129534,226.04,225.96,10.87647521]
[1759846872281,15.48398513,226.04,225.96,10.87647521]
[1759846872454,0.7,226.03,225.97,34.28]
[1759846872781,4.42399575,226.04,225.97,34.28]
[1759846873788,4.42399575,226.04,225.98,11.55647521]
[1759846874492,0.7,226.05,226.01,20.8]
[1759846874658,5.12382932,226.05,226.02,34.28]
[1759846874862,12.68512466,226.05,226.02,34.28]
[1759846875083,0.7,226.11,226.03,34.96]
[1759846875683,4.42282176,226.1,226.03,34.96]
[1759846875987,0.7,226.09,226.04,34.26]
[1759846876182,8.26129534,226.08,226.04,34.26]
[1759846876385,4.42340867,226.07,226.04,34.26]
[1759846876584,0.7,226.06,226.04,34.26]
[1759846876765,0.7,226.05,226.04,34.26]
[1759846876972,8.26129534,226.05,225.95,10.87647521]
[1759846877166,0.7,226.05,225.96,34.94]
[1759846877390,15.48193036,226.07,225.97,11.55647521]
[1759846877595,7.56129534,226.06,225.97,11.55647521]
[1759846877761,7.56129534,226.06,225.97,10.87647521]
[1759846878073,4.42340867,226.07,225.99,10.87647521]
[1759846878278,0.7,226.09,225.99,10.87647521]
[1759846878279,4.42321302,226.08,226.01,10.87647521]
[1759846878479,4.42321302,226.08,226.02,0.68]
[1759846879189,11.98450836,226.08,226.01,10.87647521]
[1759846879891,12.68450836,226.08,226.02,34.24]
[1759846880093,4.42223499,226.13,226.03,11.55647521]
[1759846880294,4.42223499,226.13,226.05,4.42380004]
[1759846880476,4.42223499,226.13,226.06,34.92]
[1759846880676,4.52215633,226.14,226.06,34.92]
[1759846880882,0.1,226.14,226.06,34.92]
[1759846881195,4.52204629,226.14,226.06,34.92]
[1759846881675,23.83844024,226.14,226.06,0.68]
[1759846881989,7.56129534,226.12,226.07,33.26]
[1759846882291,16.2771449,226.14,226.07,33.94]
[1759846882786,7.56129534,226.13,226.04,0.68]
[1759846882998,0.7,226.13,226.05,34.22]
[1759846883564,8.26129534,226.13,226.05,34.22]
[1759846883814,0.7,226.13,226.05,34.22]
[1759846883971,8.26129534,226.13,226.05,34.22]
[1759846884175,15.5771449,226.14,226.06,0.68]
[1759846884795,7.56129534,226.12,226.07,34.22]
[1759846884995,8.26129534,226.11,226.08,34.22]
[1759846885174,0.7,226.11,226.08,34.22]
[1759846885493,0.7,226.11,226.09,34.2]
[1759846886000,8.26129534,226.11,226.09,34.2]
[1759846886173,7.56129534,226.11,226.09,34.2]
[1759846886589,4.42282176,226.1,226.09,34.2]
[1759846886981,5.13282176,226.1,226.09,34.2]
[1759846887182,4.42282176,226.1,226.09,34.2]
[1759846888477,4.42262615,226.11,226.09,68.68]
[1759846888690,8.27129534,226.1,226.09,34.48]
[1759846888893,8.27129534,226.1,226.09,68.66]
[1759846889096,0.71,226.1,226.09,68.66]
[1759846889480,7.56129534,226.1,226.09,68.66]
[1759846889887,8.27129534,226.1,226.09,68.66]
[1759846890089,4.42262615,226.11,226.09,68.66]
[1759846890492,4.42262615,226.11,226.09,69.34]
[1759846890793,4.42223499,226.13,226.1,0.68]
[1759846890996,4.42223499,226.13,226.09,68.66]
[1759846891182,4.52207596,226.14,226.09,68.66]
[1759846891882,0.1,226.14,226.11,10.87647521]
[1759846892208,4.41969415,226.26,226.17,10.87647521]
[1759846892385,4.41969415,226.26,226.18,34.86]
[1759846892577,4.41969415,226.26,226.19,4.42106193]
[1759846892812,11.75804012,226.29,226.2,0.68]
[1759846892813,0.71,226.29,226.2,0.68]
[1759846893278,0.2,226.32,226.21,10.87647521]
[1759846893481,4.51953808,226.27,226.22,34.84]
[1759846893706,0.1,226.27,226.23,0.68]
[1759846893878,0.1,226.27,226.24,0.68]
[1759846894079,0.1,226.27,226.22,34.16]
[1759846894280,0.1,226.27,226.24,0.68]
[1759846894500,0.1,226.27,226.25,0.68]
[1759846894800,0.1,226.27,226.26,34.84]
[1759846895394,4.41969415,226.26,226.21,20.8]
[1759846895604,15.46892954,226.26,226.11,12.9913682]
[1759846895793,0.71,226.25,226.14,34.14]
[1759846895978,7.56129534,226.23,226.15,0.68]
[1759846896403,0.71,226.25,226.15,0.68]
[1759846896599,15.47029702,226.24,226.15,0.68]
[1759846896774,7.56129534,226.22,226.15,0.68]
[1759846896983,7.56129534,226.23,226.15,0.68]
[1759846897302,7.56129534,226.22,226.15,0.68]
[1759846897800,15.47029702,226.24,226.16,34.14]
[1759846898200,7.56129534,226.22,226.16,34.14]
[1759846898406,7.56129534,226.22,226.15,0.68]
[1759846898614,7.56129534,226.22,226.17,34.14]
[1759846898793,7.56129534,226.22,226.18,34.12]
[1759846898996,8.26129534,226.21,226.14,10.87647521]
[1759846899184,8.26129534,226.21,226.15,34.12]
[1759846899386,7.56129534,226.21,226.15,34.8]
[1759846899693,0.7,226.23,226.15,34.8]
[1759846899880,15.47029702,226.24,226.16,11.55647521]
[1759846900504,7.56129534,226.23,226.16,11.55647521]
[1759846900814,7.56129534,226.18,226.17,34.12]
[1759846901223,8.26129534,226.18,226.13,72.18028728]
[1759846901517,7.56129534,226.14,226.09,34.48]
[1759846901722,7.56129534,226.11,226.1,34.12]
[1759846902207,0.7,226.16,226.1,34.12]
[1759846902390,7.56129534,226.13,226.1,34.12]
[1759846902587,0.7,226.16,226.1,34.12]
[1759846902897,4.4218439,226.15,226.1,34.8]
[1759846903104,4.4218439,226.15,226.11,0.68]
[1759846903499,7.56129534,226.16,226.11,0.68]
[1759846903700,7.56129534,226.17,226.12,0.68]
[1759846903914,7.56129534,226.15,226.1,34.12]
[1759846904087,0.7,226.16,226.1,34.12]
[1759846904290,7.56129534,226.14,226.09,34.48]
[1759846904506,7.56129534,226.14,226.1,34.1]
[1759846904691,4.42243056,226.12,226.09,34.48]
[1759846904897,11.9837259,226.12,226.1,34.1]
[1759846905812,11.05536346,226.14,226.1,34.1]
[1759846906108,7.56129534,226.17,226.11,0.68]
[1759846906312,7.56129534,226.16,226.1,34.1]
[1759846906486,7.56129534,226.14,226.1,34.1]
[1759846906690,7.56129534,226.15,226.11,0.68]
[1759846906896,0.7,226.18,226.11,0.68]
[1759846907097,15.4730327,226.2,226.11,0.68]
[1759846907302,16.1730327,226.2,226.11,0.68]
[1759846907501,7.56129534,226.16,226.11,0.68]
[1759846907703,7.56129534,226.13,226.12,34.08]
[1759846907910,4.42223499,226.13,226.12,34.08]
[1759846908107,11.98353033,226.13,226.12,34.08]
[1759846908311,11.98353033,226.13,226.09,34.48]
[1759846908312,12.68353033,226.13,226.09,34.48]
[1759846908615,7.56129534,226.11,226.1,34.08]
[1759846908809,7.56129534,226.11,226.05,0.68]
[1759846909012,7.56129534,226.08,226.06,34.46]
[1759846909221,7.56129534,226.08,226.06,68.54]
[1759846909714,37.58899746,226.13,226.06,68.54]
[1759846909899,4.42301738,226.09,226.06,68.54]
[1759846910104,0.7,226.08,226.06,68.54]
[1759846910305,22.81117498,226.13,226.06,69.22]
[1759846910508,7.56129534,226.09,226.07,34.06]
[1759846911003,0.7,226.11,226.07,34.06]
[1759846911206,5.11000803,226.08,226.07,34.06]
[1759846911589,5.11000803,226.08,226.06,34.46]
[1759846911794,5.11000803,226.07,226.06,34.46]
[1759846911995,9.5334167,226.07,226.06,68.52]
[1759846912210,4.42340867,226.07,226.06,68.52]
[1759846913404,9.5334167,226.07,226.06,34.46]
[1759846913721,21.29193839,226.07,225.93,0.68]
[1759846913903,5.11000803,225.99,225.94,34.06]
[1759846914103,0.7,226.05,225.95,0.68]
[1759846914311,5.11000803,226.01,225.95,0.68]
[1759846914692,5.11000803,226.02,225.95,0.68]
[1759846914892,4.42340867,226.07,225.96,10.87647521]
[1759846915115,4.42340867,226.07,225.98,10.87647521]
[1759846915313,9.5334167,226.07,225.99,0.68]
[1759846915515,4.42340867,226.07,226.0,34.06]
[1759846915715,5.11000803,226.1,226.01,0.68]
[1759846915923,15.48193036,226.07,226.01,0.68]
[1759846916220,5.11000803,226.06,226.0,34.06]
[1759846916393,15.48193036,226.07,225.99,0.68]
[1759846916598,5.11000803,226.06,226.01,34.04]
[1759846916922,15.48193036,226.07,226.01,34.04]
[1759846917117,5.11000803,226.05,226.01,34.04]
[1759846917420,5.11000803,226.05,226.02,34.04]
[1759846917603,5.11000803,226.05,226.03,68.5]
[1759846917803,5.11000803,226.04,226.03,34.46]
[1759846918003,9.53400378,226.04,226.03,34.46]
[1759846918210,9.53400378,226.04,226.03,68.5]
[1759846918610,4.42399575,226.04,226.03,68.5]
[1759846918922,10.18400378,226.04,226.03,68.5]
[1759846919105,21.24399316,226.04,225.96,0.7]
[1759846919423,16.13398513,226.04,225.97,68.5]
[1759846919614,5.11000803,226.0,225.97,68.5]
[1759846919813,5.11000803,226.0,225.97,34.46]
[1759846920022,4.42517036,225.98,225.97,34.46]
[1759846920202,4.42462243,226.01,225.97,68.5]
[1759846920402,15.48406212,226.04,225.98,0.7]
[1759846920718,5.11000803,226.11,226.02,20.8]
[1759846920926,0.65,226.14,226.03,34.74]
[1759846921221,16.12510308,226.17,226.04,10.87647521]
[1759846921424,5.11000803,226.14,226.05,0.7]
[1759846921633,16.12510308,226.17,226.05,0.7]
[1759846921634,5.11000803,226.15,226.05,0.7]